{"text_format":"3","workbook":"xlsx","n_sheets":4,"sheets":["Początek","Miesięczny raport budżetu","Wydatki miesięczne","Dodatkowe dane"],"not_rendered":{"charts":1,"defined_names":3,"pivot_tables":2},"read":"whole","date_system":"1900"}

{"sheet":"Początek","index":0,"n_rows":8,"n_cols":2,"rows_kept":8}
[null,"INFORMACJE O TYM SZABLONIE"]
[null,"Ten skoroszyt umożliwia śledzenie wydatków i utworzenie budżetu rodzinnego."]
[null,"W arkuszu Miesięczny raport budżetu wprowadź planowane i rzeczywiste przychody z różnych źródeł, a w arkuszu Wydatki miesięczne — planowane i rzeczywiste kwoty wydane na pozycje z różnych kategorii."]
[null,"W arkuszu Miesięczny raport budżetu są automatycznie obliczane saldo planowane i rzeczywiste oraz ich różnica i są aktualizowane podsumowanie budżetu oraz wykres Przegląd budżetu."]
[null,"W tabeli w arkuszu Dodatkowe dane można zmodyfikować lub wprowadzić nową kategorię."]
[null,"Uwaga: "]
[null,"W kolumnie A w arkuszu MIESIĘCZNY RAPORT BUDŻETU, a także w komórce A1 w arkuszach WYDATKI MIESIĘCZNE i DODATKOWE DANE podano dodatkowe instrukcje. Ten tekst celowo został ukryty. Aby usunąć tekst, zaznacz kolumnę A lub komórkę A1, a następnie naciśnij klawisz DELETE. Aby odkryć tekst, zaznacz kolumnę A lub komórkę A1, a następnie zmień kolor czcionki."]
[null,"Aby uzyskać więcej informacji o tabelach, w tabeli naciśnij klawisz SHIFT, a następnie F10, wybierz opcję TABELA, a następnie TEKST ALTERNATYWNY. W tabelach przestawnych naciśnij klawisz SHIFT, a następnie F10, wybierz pozycję OPCJE TABELI PRZESTAWNEJ, a następnie kartę TEKST ALTERNATYWNY."]

{"sheet":"Miesięczny raport budżetu","index":1,"n_rows":34,"n_cols":14,"rows_kept":34,"merged":[[0,1,0,4],[0,5,0,7],[0,12,0,13],[1,9,5,13],[2,2,2,5],[3,2,3,5],[4,2,4,5],[7,1,10,1],[7,5,10,5],[7,6,10,6],[8,9,31,9],[12,1,16,1],[12,5,16,5],[12,6,16,6],[19,1,34,6]]}
["W tym arkuszu utwórz miesięczny raport budżetu. W komórce po prawej stronie znajduje się tytuł tego arkusza, a w komórce J1 — podtytuł. Zaznacz komórkę F1, aby przejść do arkusza Wydatki miesięczne. W komórkach w tej kolumnie podano inne przydatne instrukcje na temat korzystania z tego arkusza.","Przegląd budżetu",{"$nulls":3},"Wydatki miesięczne",{"$nulls":3},"Podsumowanie budżetu",null,null,"W tej komórce znajduje się pojedyncza zielona łodyga pszenicy."]
["Etykieta Saldo znajduje się w komórce z prawej strony. W komórkach od J2 do N6 znajdują się fragmentatory tabeli przestawnej do filtrowania danych tabeli. Aby wybrać wiele kategorii, przytrzymaj naciśnięty klawisz Control.","Saldo",{"$nulls":7},"W tej komórce znajduje się fragmentator Kategoria do filtrowania tabeli przestawnej poniżej według wybranej kategoria."]
["W komórce po prawej stronie znajduje się etykieta Saldo planowane. W komórce G3 jest automatycznie obliczane saldo planowane.","Saldo planowane","(Planowane minus wydatki)",{"$nulls":3},{"$f":"D17-SUM(Szczegóły_budżetu[Koszt planowany])","v":{"v":1585,"d":"1,585 zł"}}]
["W komórce po prawej stronie znajduje się etykieta Saldo rzeczywiste. W komórce G4 jest automatycznie obliczane saldo rzeczywiste.","Saldo rzeczywiste ","(Rzeczywiste minus wydatki)",{"$nulls":3},{"$f":"D11-SUM(Szczegóły_budżetu[Koszt rzeczywisty])","v":{"v":1740,"d":"1,740 zł"}}]
["W komórce po prawej stronie znajduje się etykieta Różnica. W komórce G5 jest automatycznie obliczana różnica. Dalsze instrukcje znajdują się w komórce A7.","Różnica","(Rzeczywiste minus planowane)",{"$nulls":3},{"$f":"G4-G3","v":{"v":155,"d":"155 zł"}}]
[]
["W komórce po prawej stronie znajduje się etykieta Przychód, w komórce F7 — etykieta Wydatki, a w komórce J7 — etykieta Podsumowanie budżetu.","Przychód",{"$nulls":3},"Wydatki",{"$nulls":3},"Zaznacz poniżej tabelę przestawną, a następnie wybierz pozycję Odśwież na karcie Analiza, aby ją zaktualizować."]
["W komórce po prawej stronie znajduje się etykieta Przychód rzeczywisty, a w komórce F8 — etykieta Wydatki rzeczywiste. W komórce D8 wprowadź przychód 1. W komórce G8 są automatycznie obliczane wydatki rzeczywiste.","RZECZYWISTE","Przychód 1",{"v":5800,"d":"5,800 zł"},null,"RZECZYWISTE",{"$f":"SUM(Szczegóły_budżetu[Koszt rzeczywisty])","v":{"v":7860,"d":"7,860 zł"}}]
["W komórce D9 wprowadź przychód 2. W komórce J9 znajduje się obraz. W komórce K9 rozpoczyna się tabela przestawna. Aby zaktualizować tabelę przestawną, wybierz polecenie Odśwież na karcie Analiza.",null,"Przychód 2",{"v":2300,"d":"2,300 zł"},{"$nulls":5},"W tej komórce znajduje się obraz.","Kategoria","Koszt planowany ","Koszt rzeczywisty ","Różnica "]
["W komórce D10 wprowadź przychód dodatkowy.",null,"Przychód dodatkowy",{"v":1500,"d":"1,500 zł"},{"$nulls":6},"Dzieci",{"v":140,"d":"140 zł"},{"v":140,"d":"140 zł"},{"v":0,"d":"0 zł"}]
["W komórce C11 znajduje się etykieta Łączny przychód, a w komórce D11 jest automatycznie obliczany łączny przychód. Dalsze instrukcje znajdują się w komórce A13.",null,"Łączny przychód",{"$f":"SUM(D8:D10)","v":{"v":9600,"d":"9,600 zł"}}]
[{"$nulls":10},"Rozrywka",{"v":400,"d":"400 zł"},{"v":358,"d":"358 zł"},{"v":42,"d":"42 zł"}]
["W komórce po prawej stronie znajduje się etykieta Przychód planowany, a w komórce F13 — etykieta Wydatki planowane. W komórce G13 są automatycznie obliczane wydatki planowane.","PLANOWANE",{"$nulls":3},"PLANOWANE",{"$f":"SUM(Szczegóły_budżetu[Koszt planowany])","v":{"v":7915,"d":"7,915 zł"}}]
["W komórce D14 wprowadź planowany przychód 1.",null,"Przychód 1",{"v":6000,"d":"6,000 zł"},{"$nulls":6},"Żywność",{"v":1100,"d":"1,100 zł"},{"v":1320,"d":"1,320 zł"},{"v":-220,"d":"-220 zł"}]
["W komórce D15 wprowadź planowany przychód 2.",null,"Przychód 2",{"v":1000,"d":"1,000 zł"}]
["W komórce D16 wprowadź przychód dodatkowy.",null,"Przychód dodatkowy",{"v":2500,"d":"2,500 zł"},{"$nulls":6},"Prezenty i datki charytatywne",{"v":100,"d":"100 zł"},{"v":125,"d":"125 zł"},{"v":-25,"d":"-25 zł"}]
["W komórce C17 znajduje się etykieta Łączny przychód, a w komórce D17 jest automatycznie obliczany łączny przychód. Dalsze instrukcje znajdują się w komórce A20.",null,"Łączny przychód",{"$f":"SUM(D14:D16)","v":{"v":9500,"d":"9,500 zł"}}]
[{"$nulls":10},"Utrzymanie domu",{"v":2830,"d":"2,830 zł"},{"v":2702,"d":"2,702 zł"},{"v":128,"d":"128 zł"}]
[]
["W komórce po prawej stronie znajduje się wykres kołowy przedstawiający udział procentowy wydatków według kategorii.","W tej komórce znajduje się wykres kołowy przedstawiający udział procentowy wydatków według kategorii.",{"$nulls":8},"Ubezpieczenie",{"v":900,"d":"900 zł"},{"v":900,"d":"900 zł"},{"v":0,"d":"0 zł"}]
[]
[{"$nulls":10},"Pożyczki",{"v":200,"d":"200 zł"},{"v":200,"d":"200 zł"},{"v":0,"d":"0 zł"}]
[]
[{"$nulls":10},"Wydatki osobiste",{"v":150,"d":"150 zł"},{"v":140,"d":"140 zł"},{"v":10,"d":"10 zł"}]
[]
[{"$nulls":10},"Zwierzęta domowe",{"v":170,"d":"170 zł"},{"v":100,"d":"100 zł"},{"v":70,"d":"70 zł"}]
[]
[{"$nulls":10},"Oszczędności lub inwestycje",{"v":200,"d":"200 zł"},{"v":200,"d":"200 zł"},{"v":0,"d":"0 zł"}]
[]
[{"$nulls":10},"Podatki",{"v":300,"d":"300 zł"},{"v":300,"d":"300 zł"},{"v":0,"d":"0 zł"}]
[]
[{"$nulls":10},"Transport",{"v":1425,"d":"1,425 zł"},{"v":1375,"d":"1,375 zł"},{"v":50,"d":"50 zł"}]
[]
[{"$nulls":10},"Suma końcowa",{"v":7915,"d":"7,915 zł"},{"v":7860,"d":"7,860 zł"},{"v":55,"d":"55 zł"}]

{"sheet":"Wydatki miesięczne","index":2,"n_rows":62,"n_cols":7,"rows_kept":62,"merged":[[0,1,0,4],[0,5,0,6]]}
["W tym arkuszu oblicz wydatki miesięczne. W komórce po prawej stronie znajduje się tytuł tego arkusza. Zaznacz komórkę F1, aby przejść do arkusza Miesięczny raport budżetu.","Wydatki miesięczne",{"$nulls":3},"Miesięczny raport budżetu"]
[" Wprowadź informacje w tabeli Szczegóły budżetu zaczynającej się w komórce po prawej stronie.","Opis","Kategoria","Koszt planowany","Koszt rzeczywisty","Różnica","Przegląd kosztów rzeczywistych"]
[null,"Zajęcia dodatkowe","Dzieci",{"v":40,"d":"40 zł"},{"v":40,"d":"40 zł"},{"$f":"Szczegóły_budżetu[[#This Row],[Koszt planowany]]-Szczegóły_budżetu[[#This Row],[Koszt rzeczywisty]]","v":{"v":0,"d":"0 zł"}},{"$f":"Szczegóły_budżetu[[#This Row],[Koszt rzeczywisty]]","v":{"v":40,"d":"40 zł"}}]
[null,"Artykuły medyczne","Dzieci",null,null,{"$f":"Szczegóły_budżetu[[#This Row],[Koszt planowany]]-Szczegóły_budżetu[[#This Row],[Koszt rzeczywisty]]","v":{"v":0,"d":"0 zł"}},{"$f":"Szczegóły_budżetu[[#This Row],[Koszt rzeczywisty]]","v":{"v":0,"d":"0 zł"}}]
[null,"Artykuły szkolne","Dzieci",null,null,{"$f":"Szczegóły_budżetu[[#This Row],[Koszt planowany]]-Szczegóły_budżetu[[#This Row],[Koszt rzeczywisty]]","v":{"v":0,"d":"0 zł"}},{"$f":"Szczegóły_budżetu[[#This Row],[Koszt rzeczywisty]]","v":{"v":0,"d":"0 zł"}}]
[null,"Czesne","Dzieci",{"v":100,"d":"100 zł"},{"v":100,"d":"100 zł"},{"$f":"Szczegóły_budżetu[[#This Row],[Koszt planowany]]-Szczegóły_budżetu[[#This Row],[Koszt rzeczywisty]]","v":{"v":0,"d":"0 zł"}},{"$f":"Szczegóły_budżetu[[#This Row],[Koszt rzeczywisty]]","v":{"v":100,"d":"100 zł"}}]
[null,"Koncerty","Rozrywka",{"v":50,"d":"50 zł"},{"v":40,"d":"40 zł"},{"$f":"Szczegóły_budżetu[[#This Row],[Koszt planowany]]-Szczegóły_budżetu[[#This Row],[Koszt rzeczywisty]]","v":{"v":10,"d":"10 zł"}},{"$f":"Szczegóły_budżetu[[#This Row],[Koszt rzeczywisty]]","v":{"v":40,"d":"40 zł"}}]
[null,"Teatr","Rozrywka",{"v":200,"d":"200 zł"},{"v":150,"d":"150 zł"},{"$f":"Szczegóły_budżetu[[#This Row],[Koszt planowany]]-Szczegóły_budżetu[[#This Row],[Koszt rzeczywisty]]","v":{"v":50,"d":"50 zł"}},{"$f":"Szczegóły_budżetu[[#This Row],[Koszt rzeczywisty]]","v":{"v":150,"d":"150 zł"}}]
[null,"Kino","Rozrywka",{"v":50,"d":"50 zł"},{"v":28,"d":"28 zł"},{"$f":"Szczegóły_budżetu[[#This Row],[Koszt planowany]]-Szczegóły_budżetu[[#This Row],[Koszt rzeczywisty]]","v":{"v":22,"d":"22 zł"}},{"$f":"Szczegóły_budżetu[[#This Row],[Koszt rzeczywisty]]","v":{"v":28,"d":"28 zł"}}]
[null,"Muzyka (CD, pobrane itp.)","Rozrywka",{"v":50,"d":"50 zł"},{"v":30,"d":"30 zł"},{"$f":"Szczegóły_budżetu[[#This Row],[Koszt planowany]]-Szczegóły_budżetu[[#This Row],[Koszt rzeczywisty]]","v":{"v":20,"d":"20 zł"}},{"$f":"Szczegóły_budżetu[[#This Row],[Koszt rzeczywisty]]","v":{"v":30,"d":"30 zł"}}]
[null,"Imprezy sportowe","Rozrywka",{"v":0,"d":"0 zł"},{"v":40,"d":"40 zł"},{"$f":"Szczegóły_budżetu[[#This Row],[Koszt planowany]]-Szczegóły_budżetu[[#This Row],[Koszt rzeczywisty]]","v":{"v":-40,"d":"-40 zł"}},{"$f":"Szczegóły_budżetu[[#This Row],[Koszt rzeczywisty]]","v":{"v":40,"d":"40 zł"}}]
[null,"Wideo/DVD (zakup)","Rozrywka",{"v":20,"d":"20 zł"},{"v":50,"d":"50 zł"},{"$f":"Szczegóły_budżetu[[#This Row],[Koszt planowany]]-Szczegóły_budżetu[[#This Row],[Koszt rzeczywisty]]","v":{"v":-30,"d":"-30 zł"}},{"$f":"Szczegóły_budżetu[[#This Row],[Koszt rzeczywisty]]","v":{"v":50,"d":"50 zł"}}]
[null,"Wideo/DVD (wypożyczalnie)","Rozrywka",{"v":30,"d":"30 zł"},{"v":20,"d":"20 zł"},{"$f":"Szczegóły_budżetu[[#This Row],[Koszt planowany]]-Szczegóły_budżetu[[#This Row],[Koszt rzeczywisty]]","v":{"v":10,"d":"10 zł"}},{"$f":"Szczegóły_budżetu[[#This Row],[Koszt rzeczywisty]]","v":{"v":20,"d":"20 zł"}}]
[null,"Restauracje","Żywność",{"v":1000,"d":"1,000 zł"},{"v":1200,"d":"1,200 zł"},{"$f":"Szczegóły_budżetu[[#This Row],[Koszt planowany]]-Szczegóły_budżetu[[#This Row],[Koszt rzeczywisty]]","v":{"v":-200,"d":"-200 zł"}},{"$f":"Szczegóły_budżetu[[#This Row],[Koszt rzeczywisty]]","v":{"v":1200,"d":"1,200 zł"}}]
[null,"Artykuły spożywcze","Żywność",{"v":100,"d":"100 zł"},{"v":120,"d":"120 zł"},{"$f":"Szczegóły_budżetu[[#This Row],[Koszt planowany]]-Szczegóły_budżetu[[#This Row],[Koszt rzeczywisty]]","v":{"v":-20,"d":"-20 zł"}},{"$f":"Szczegóły_budżetu[[#This Row],[Koszt rzeczywisty]]","v":{"v":120,"d":"120 zł"}}]
[null,"Cele charytatywne 1","Prezenty i datki charytatywne",{"v":75,"d":"75 zł"},{"v":100,"d":"100 zł"},{"$f":"Szczegóły_budżetu[[#This Row],[Koszt planowany]]-Szczegóły_budżetu[[#This Row],[Koszt rzeczywisty]]","v":{"v":-25,"d":"-25 zł"}},{"$f":"Szczegóły_budżetu[[#This Row],[Koszt rzeczywisty]]","v":{"v":100,"d":"100 zł"}}]
[null,"Cele charytatywne 2","Prezenty i datki charytatywne",{"v":25,"d":"25 zł"},{"v":25,"d":"25 zł"},{"$f":"Szczegóły_budżetu[[#This Row],[Koszt planowany]]-Szczegóły_budżetu[[#This Row],[Koszt rzeczywisty]]","v":{"v":0,"d":"0 zł"}},{"$f":"Szczegóły_budżetu[[#This Row],[Koszt rzeczywisty]]","v":{"v":25,"d":"25 zł"}}]
[null,"Prezent 1","Prezenty i datki charytatywne",null,null,{"$f":"Szczegóły_budżetu[[#This Row],[Koszt planowany]]-Szczegóły_budżetu[[#This Row],[Koszt rzeczywisty]]","v":{"v":0,"d":"0 zł"}},{"$f":"Szczegóły_budżetu[[#This Row],[Koszt rzeczywisty]]","v":{"v":0,"d":"0 zł"}}]
[null,"Prezent 2","Prezenty i datki charytatywne",null,null,{"$f":"Szczegóły_budżetu[[#This Row],[Koszt planowany]]-Szczegóły_budżetu[[#This Row],[Koszt rzeczywisty]]","v":{"v":0,"d":"0 zł"}},{"$f":"Szczegóły_budżetu[[#This Row],[Koszt rzeczywisty]]","v":{"v":0,"d":"0 zł"}}]
[null,"Telewizja kablowa/satelitarna","Utrzymanie domu",{"v":100,"d":"100 zł"},{"v":100,"d":"100 zł"},{"$f":"Szczegóły_budżetu[[#This Row],[Koszt planowany]]-Szczegóły_budżetu[[#This Row],[Koszt rzeczywisty]]","v":{"v":0,"d":"0 zł"}},{"$f":"Szczegóły_budżetu[[#This Row],[Koszt rzeczywisty]]","v":{"v":100,"d":"100 zł"}}]
[null,"Prąd","Utrzymanie domu",{"v":45,"d":"45 zł"},{"v":50,"d":"50 zł"},{"$f":"Szczegóły_budżetu[[#This Row],[Koszt planowany]]-Szczegóły_budżetu[[#This Row],[Koszt rzeczywisty]]","v":{"v":-5,"d":"-5 zł"}},{"$f":"Szczegóły_budżetu[[#This Row],[Koszt rzeczywisty]]","v":{"v":50,"d":"50 zł"}}]
[null,"Gaz","Utrzymanie domu",{"v":300,"d":"300 zł"},{"v":400,"d":"400 zł"},{"$f":"Szczegóły_budżetu[[#This Row],[Koszt planowany]]-Szczegóły_budżetu[[#This Row],[Koszt rzeczywisty]]","v":{"v":-100,"d":"-100 zł"}},{"$f":"Szczegóły_budżetu[[#This Row],[Koszt rzeczywisty]]","v":{"v":400,"d":"400 zł"}}]
[null,"Sprzątanie","Utrzymanie domu",{"v":200,"d":"200 zł"},null,{"$f":"Szczegóły_budżetu[[#This Row],[Koszt planowany]]-Szczegóły_budżetu[[#This Row],[Koszt rzeczywisty]]","v":{"v":200,"d":"200 zł"}},{"$f":"Szczegóły_budżetu[[#This Row],[Koszt rzeczywisty]]","v":{"v":0,"d":"0 zł"}}]
[null,"Konserwacja","Utrzymanie domu",{"v":200,"d":"200 zł"},{"v":150,"d":"150 zł"},{"$f":"Szczegóły_budżetu[[#This Row],[Koszt planowany]]-Szczegóły_budżetu[[#This Row],[Koszt rzeczywisty]]","v":{"v":50,"d":"50 zł"}},{"$f":"Szczegóły_budżetu[[#This Row],[Koszt rzeczywisty]]","v":{"v":150,"d":"150 zł"}}]
[null,"Spłata kredytu lub czynsz","Utrzymanie domu",{"v":1700,"d":"1,700 zł"},{"v":1700,"d":"1,700 zł"},{"$f":"Szczegóły_budżetu[[#This Row],[Koszt planowany]]-Szczegóły_budżetu[[#This Row],[Koszt rzeczywisty]]","v":{"v":0,"d":"0 zł"}},{"$f":"Szczegóły_budżetu[[#This Row],[Koszt rzeczywisty]]","v":{"v":1700,"d":"1,700 zł"}}]
[null,"Gaz ziemny","Utrzymanie domu",null,null,{"$f":"Szczegóły_budżetu[[#This Row],[Koszt planowany]]-Szczegóły_budżetu[[#This Row],[Koszt rzeczywisty]]","v":{"v":0,"d":"0 zł"}},{"$f":"Szczegóły_budżetu[[#This Row],[Koszt rzeczywisty]]","v":{"v":0,"d":"0 zł"}}]
[null,"Usługa internetowa","Utrzymanie domu",{"v":100,"d":"100 zł"},{"v":100,"d":"100 zł"},{"$f":"Szczegóły_budżetu[[#This Row],[Koszt planowany]]-Szczegóły_budżetu[[#This Row],[Koszt rzeczywisty]]","v":{"v":0,"d":"0 zł"}},{"$f":"Szczegóły_budżetu[[#This Row],[Koszt rzeczywisty]]","v":{"v":100,"d":"100 zł"}}]
[null,"Telefon (komórkowy)","Utrzymanie domu",{"v":60,"d":"60 zł"},{"v":60,"d":"60 zł"},{"$f":"Szczegóły_budżetu[[#This Row],[Koszt planowany]]-Szczegóły_budżetu[[#This Row],[Koszt rzeczywisty]]","v":{"v":0,"d":"0 zł"}},{"$f":"Szczegóły_budżetu[[#This Row],[Koszt rzeczywisty]]","v":{"v":60,"d":"60 zł"}}]
[null,"Telefon (domowy)","Utrzymanie domu",{"v":35,"d":"35 zł"},{"v":39,"d":"39 zł"},{"$f":"Szczegóły_budżetu[[#This Row],[Koszt planowany]]-Szczegóły_budżetu[[#This Row],[Koszt rzeczywisty]]","v":{"v":-4,"d":"-4 zł"}},{"$f":"Szczegóły_budżetu[[#This Row],[Koszt rzeczywisty]]","v":{"v":39,"d":"39 zł"}}]
[null,"Artykuły","Utrzymanie domu",{"v":40,"d":"40 zł"},{"v":55,"d":"55 zł"},{"$f":"Szczegóły_budżetu[[#This Row],[Koszt planowany]]-Szczegóły_budżetu[[#This Row],[Koszt rzeczywisty]]","v":{"v":-15,"d":"-15 zł"}},{"$f":"Szczegóły_budżetu[[#This Row],[Koszt rzeczywisty]]","v":{"v":55,"d":"55 zł"}}]
[null,"Wywóz śmieci i recykling","Utrzymanie domu",{"v":25,"d":"25 zł"},{"v":22,"d":"22 zł"},{"$f":"Szczegóły_budżetu[[#This Row],[Koszt planowany]]-Szczegóły_budżetu[[#This Row],[Koszt rzeczywisty]]","v":{"v":3,"d":"3 zł"}},{"$f":"Szczegóły_budżetu[[#This Row],[Koszt rzeczywisty]]","v":{"v":22,"d":"22 zł"}}]
[null,"Woda i ścieki","Utrzymanie domu",{"v":25,"d":"25 zł"},{"v":26,"d":"26 zł"},{"$f":"Szczegóły_budżetu[[#This Row],[Koszt planowany]]-Szczegóły_budżetu[[#This Row],[Koszt rzeczywisty]]","v":{"v":-1,"d":"-1 zł"}},{"$f":"Szczegóły_budżetu[[#This Row],[Koszt rzeczywisty]]","v":{"v":26,"d":"26 zł"}}]
[null,"Zdrowie","Ubezpieczenie",{"v":400,"d":"400 zł"},{"v":400,"d":"400 zł"},{"$f":"Szczegóły_budżetu[[#This Row],[Koszt planowany]]-Szczegóły_budżetu[[#This Row],[Koszt rzeczywisty]]","v":{"v":0,"d":"0 zł"}},{"$f":"Szczegóły_budżetu[[#This Row],[Koszt rzeczywisty]]","v":{"v":400,"d":"400 zł"}}]
[null,"Dom","Ubezpieczenie",{"v":400,"d":"400 zł"},{"v":400,"d":"400 zł"},{"$f":"Szczegóły_budżetu[[#This Row],[Koszt planowany]]-Szczegóły_budżetu[[#This Row],[Koszt rzeczywisty]]","v":{"v":0,"d":"0 zł"}},{"$f":"Szczegóły_budżetu[[#This Row],[Koszt rzeczywisty]]","v":{"v":400,"d":"400 zł"}}]
[null,"Życie","Ubezpieczenie",{"v":100,"d":"100 zł"},{"v":100,"d":"100 zł"},{"$f":"Szczegóły_budżetu[[#This Row],[Koszt planowany]]-Szczegóły_budżetu[[#This Row],[Koszt rzeczywisty]]","v":{"v":0,"d":"0 zł"}},{"$f":"Szczegóły_budżetu[[#This Row],[Koszt rzeczywisty]]","v":{"v":100,"d":"100 zł"}}]
[null,"Karta kredytowa 1","Pożyczki",{"v":200,"d":"200 zł"},{"v":200,"d":"200 zł"},{"$f":"Szczegóły_budżetu[[#This Row],[Koszt planowany]]-Szczegóły_budżetu[[#This Row],[Koszt rzeczywisty]]","v":{"v":0,"d":"0 zł"}},{"$f":"Szczegóły_budżetu[[#This Row],[Koszt rzeczywisty]]","v":{"v":200,"d":"200 zł"}}]
[null,"Karta kredytowa 2","Pożyczki",null,null,{"$f":"Szczegóły_budżetu[[#This Row],[Koszt planowany]]-Szczegóły_budżetu[[#This Row],[Koszt rzeczywisty]]","v":{"v":0,"d":"0 zł"}},{"$f":"Szczegóły_budżetu[[#This Row],[Koszt rzeczywisty]]","v":{"v":0,"d":"0 zł"}}]
[null,"Karta kredytowa 3","Pożyczki",null,null,{"$f":"Szczegóły_budżetu[[#This Row],[Koszt planowany]]-Szczegóły_budżetu[[#This Row],[Koszt rzeczywisty]]","v":{"v":0,"d":"0 zł"}},{"$f":"Szczegóły_budżetu[[#This Row],[Koszt rzeczywisty]]","v":{"v":0,"d":"0 zł"}}]
[null,"Osobiste","Pożyczki",null,null,{"$f":"Szczegóły_budżetu[[#This Row],[Koszt planowany]]-Szczegóły_budżetu[[#This Row],[Koszt rzeczywisty]]","v":{"v":0,"d":"0 zł"}},{"$f":"Szczegóły_budżetu[[#This Row],[Koszt rzeczywisty]]","v":{"v":0,"d":"0 zł"}}]
[null,"Kredyt studencki","Pożyczki",null,null,{"$f":"Szczegóły_budżetu[[#This Row],[Koszt planowany]]-Szczegóły_budżetu[[#This Row],[Koszt rzeczywisty]]","v":{"v":0,"d":"0 zł"}},{"$f":"Szczegóły_budżetu[[#This Row],[Koszt rzeczywisty]]","v":{"v":0,"d":"0 zł"}}]
[null,"Ubrania","Wydatki osobiste",{"v":150,"d":"150 zł"},{"v":140,"d":"140 zł"},{"$f":"Szczegóły_budżetu[[#This Row],[Koszt planowany]]-Szczegóły_budżetu[[#This Row],[Koszt rzeczywisty]]","v":{"v":10,"d":"10 zł"}},{"$f":"Szczegóły_budżetu[[#This Row],[Koszt rzeczywisty]]","v":{"v":140,"d":"140 zł"}}]
[null,"Pralnia chemiczna","Wydatki osobiste",null,null,{"$f":"Szczegóły_budżetu[[#This Row],[Koszt planowany]]-Szczegóły_budżetu[[#This Row],[Koszt rzeczywisty]]","v":{"v":0,"d":"0 zł"}},{"$f":"Szczegóły_budżetu[[#This Row],[Koszt rzeczywisty]]","v":{"v":0,"d":"0 zł"}}]
[null,"Włosy/paznokcie","Wydatki osobiste",null,null,{"$f":"Szczegóły_budżetu[[#This Row],[Koszt planowany]]-Szczegóły_budżetu[[#This Row],[Koszt rzeczywisty]]","v":{"v":0,"d":"0 zł"}},{"$f":"Szczegóły_budżetu[[#This Row],[Koszt rzeczywisty]]","v":{"v":0,"d":"0 zł"}}]
[null,"Klub sportowy","Wydatki osobiste",null,null,{"$f":"Szczegóły_budżetu[[#This Row],[Koszt planowany]]-Szczegóły_budżetu[[#This Row],[Koszt rzeczywisty]]","v":{"v":0,"d":"0 zł"}},{"$f":"Szczegóły_budżetu[[#This Row],[Koszt rzeczywisty]]","v":{"v":0,"d":"0 zł"}}]
[null,"Artykuły medyczne","Wydatki osobiste",null,null,{"$f":"Szczegóły_budżetu[[#This Row],[Koszt planowany]]-Szczegóły_budżetu[[#This Row],[Koszt rzeczywisty]]","v":{"v":0,"d":"0 zł"}},{"$f":"Szczegóły_budżetu[[#This Row],[Koszt rzeczywisty]]","v":{"v":0,"d":"0 zł"}}]
[null,"Żywność","Zwierzęta domowe",{"v":150,"d":"150 zł"},{"v":75,"d":"75 zł"},{"$f":"Szczegóły_budżetu[[#This Row],[Koszt planowany]]-Szczegóły_budżetu[[#This Row],[Koszt rzeczywisty]]","v":{"v":75,"d":"75 zł"}},{"$f":"Szczegóły_budżetu[[#This Row],[Koszt rzeczywisty]]","v":{"v":75,"d":"75 zł"}}]
[null,"Pielęgnacja","Zwierzęta domowe",{"v":20,"d":"20 zł"},{"v":25,"d":"25 zł"},{"$f":"Szczegóły_budżetu[[#This Row],[Koszt planowany]]-Szczegóły_budżetu[[#This Row],[Koszt rzeczywisty]]","v":{"v":-5,"d":"-5 zł"}},{"$f":"Szczegóły_budżetu[[#This Row],[Koszt rzeczywisty]]","v":{"v":25,"d":"25 zł"}}]
[null,"Artykuły medyczne","Zwierzęta domowe",null,null,{"$f":"Szczegóły_budżetu[[#This Row],[Koszt planowany]]-Szczegóły_budżetu[[#This Row],[Koszt rzeczywisty]]","v":{"v":0,"d":"0 zł"}},{"$f":"Szczegóły_budżetu[[#This Row],[Koszt rzeczywisty]]","v":{"v":0,"d":"0 zł"}}]
[null,"Zabawki","Zwierzęta domowe",null,null,{"$f":"Szczegóły_budżetu[[#This Row],[Koszt planowany]]-Szczegóły_budżetu[[#This Row],[Koszt rzeczywisty]]","v":{"v":0,"d":"0 zł"}},{"$f":"Szczegóły_budżetu[[#This Row],[Koszt rzeczywisty]]","v":{"v":0,"d":"0 zł"}}]
[null,"Fundusz inwestycyjny","Oszczędności lub inwestycje",{"v":200,"d":"200 zł"},{"v":200,"d":"200 zł"},{"$f":"Szczegóły_budżetu[[#This Row],[Koszt planowany]]-Szczegóły_budżetu[[#This Row],[Koszt rzeczywisty]]","v":{"v":0,"d":"0 zł"}},{"$f":"Szczegóły_budżetu[[#This Row],[Koszt rzeczywisty]]","v":{"v":200,"d":"200 zł"}}]
[null,"Fundusz emerytalny","Oszczędności lub inwestycje",null,null,{"$f":"Szczegóły_budżetu[[#This Row],[Koszt planowany]]-Szczegóły_budżetu[[#This Row],[Koszt rzeczywisty]]","v":{"v":0,"d":"0 zł"}},{"$f":"Szczegóły_budżetu[[#This Row],[Koszt rzeczywisty]]","v":{"v":0,"d":"0 zł"}}]
[null,"Państwowe","Podatki",{"v":300,"d":"300 zł"},{"v":300,"d":"300 zł"},{"$f":"Szczegóły_budżetu[[#This Row],[Koszt planowany]]-Szczegóły_budżetu[[#This Row],[Koszt rzeczywisty]]","v":{"v":0,"d":"0 zł"}},{"$f":"Szczegóły_budżetu[[#This Row],[Koszt rzeczywisty]]","v":{"v":300,"d":"300 zł"}}]
[null,"Lokalnie","Podatki",null,null,{"$f":"Szczegóły_budżetu[[#This Row],[Koszt planowany]]-Szczegóły_budżetu[[#This Row],[Koszt rzeczywisty]]","v":{"v":0,"d":"0 zł"}},{"$f":"Szczegóły_budżetu[[#This Row],[Koszt rzeczywisty]]","v":{"v":0,"d":"0 zł"}}]
[null,"Wojewódzkie","Podatki",null,null,{"$f":"Szczegóły_budżetu[[#This Row],[Koszt planowany]]-Szczegóły_budżetu[[#This Row],[Koszt rzeczywisty]]","v":{"v":0,"d":"0 zł"}},{"$f":"Szczegóły_budżetu[[#This Row],[Koszt rzeczywisty]]","v":{"v":0,"d":"0 zł"}}]
[null,"Opłaty za taksówkę/autobus","Transport",{"v":100,"d":"100 zł"},{"v":150,"d":"150 zł"},{"$f":"Szczegóły_budżetu[[#This Row],[Koszt planowany]]-Szczegóły_budżetu[[#This Row],[Koszt rzeczywisty]]","v":{"v":-50,"d":"-50 zł"}},{"$f":"Szczegóły_budżetu[[#This Row],[Koszt rzeczywisty]]","v":{"v":150,"d":"150 zł"}}]
[null,"Paliwo","Transport",{"v":450,"d":"450 zł"},{"v":400,"d":"400 zł"},{"$f":"Szczegóły_budżetu[[#This Row],[Koszt planowany]]-Szczegóły_budżetu[[#This Row],[Koszt rzeczywisty]]","v":{"v":50,"d":"50 zł"}},{"$f":"Szczegóły_budżetu[[#This Row],[Koszt rzeczywisty]]","v":{"v":400,"d":"400 zł"}}]
[null,"Ubezpieczenie","Transport",{"v":300,"d":"300 zł"},{"v":300,"d":"300 zł"},{"$f":"Szczegóły_budżetu[[#This Row],[Koszt planowany]]-Szczegóły_budżetu[[#This Row],[Koszt rzeczywisty]]","v":{"v":0,"d":"0 zł"}},{"$f":"Szczegóły_budżetu[[#This Row],[Koszt rzeczywisty]]","v":{"v":300,"d":"300 zł"}}]
[null,"Licencjonowanie ","Transport",{"v":25,"d":"25 zł"},{"v":25,"d":"25 zł"},{"$f":"Szczegóły_budżetu[[#This Row],[Koszt planowany]]-Szczegóły_budżetu[[#This Row],[Koszt rzeczywisty]]","v":{"v":0,"d":"0 zł"}},{"$f":"Szczegóły_budżetu[[#This Row],[Koszt rzeczywisty]]","v":{"v":25,"d":"25 zł"}}]
[null,"Konserwacja","Transport",{"v":100,"d":"100 zł"},{"v":50,"d":"50 zł"},{"$f":"Szczegóły_budżetu[[#This Row],[Koszt planowany]]-Szczegóły_budżetu[[#This Row],[Koszt rzeczywisty]]","v":{"v":50,"d":"50 zł"}},{"$f":"Szczegóły_budżetu[[#This Row],[Koszt rzeczywisty]]","v":{"v":50,"d":"50 zł"}}]
[null,"Parking","Transport",null,null,{"$f":"Szczegóły_budżetu[[#This Row],[Koszt planowany]]-Szczegóły_budżetu[[#This Row],[Koszt rzeczywisty]]","v":{"v":0,"d":"0 zł"}},{"$f":"Szczegóły_budżetu[[#This Row],[Koszt rzeczywisty]]","v":{"v":0,"d":"0 zł"}}]
[null,"Opłata za samochód","Transport",{"v":450,"d":"450 zł"},{"v":450,"d":"450 zł"},{"$f":"Szczegóły_budżetu[[#This Row],[Koszt planowany]]-Szczegóły_budżetu[[#This Row],[Koszt rzeczywisty]]","v":{"v":0,"d":"0 zł"}},{"$f":"Szczegóły_budżetu[[#This Row],[Koszt rzeczywisty]]","v":{"v":450,"d":"450 zł"}}]
[null,"Suma",null,{"$f":"SUBTOTAL(109,Szczegóły_budżetu[Koszt planowany])","v":{"v":7915,"d":"7,915 zł"}},{"$f":"SUBTOTAL(109,Szczegóły_budżetu[Koszt rzeczywisty])","v":{"v":7860,"d":"7,860 zł"}},{"$f":"SUBTOTAL(109,Szczegóły_budżetu[Różnica])","v":{"v":55,"d":"55 zł"}}]

{"sheet":"Dodatkowe dane","index":3,"n_rows":15,"n_cols":5,"rows_kept":15}
["Ten arkusz umożliwia modyfikowanie listy rozwijanej kolumny Kategoria w tabeli Szczegóły budżetu w arkuszu Wydatki miesięczne. W tym celu zmodyfikuj lub wprowadź nową kategorię w tabeli Wyszukiwanie kategorii budżetu zaczynającej się w komórce E2. W komórce B2 zaczyna się tabela przestawna połączona z wykresem Przegląd budżetu w arkuszu Miesięczny raport budżetu.","Tabela przestawna do wykresu Przegląd budżetu",null,null,"Lista odnośników dla kategorii szczegółów budżetu"]
[null,"Kategoria","Koszt",null,"Wyszukiwanie kategorii budżetu"]
[null,"Dzieci",{"v":140,"d":"140 zł"},null,"Dzieci"]
[null,"Rozrywka",{"v":358,"d":"358 zł"},null,"Rozrywka"]
[null,"Żywność",{"v":1320,"d":"1,320 zł"},null,"Żywność"]
[null,"Prezenty i datki charytatywne",{"v":125,"d":"125 zł"},null,"Prezenty i datki charytatywne"]
[null,"Utrzymanie domu",{"v":2702,"d":"2,702 zł"},null,"Utrzymanie domu"]
[null,"Ubezpieczenie",{"v":900,"d":"900 zł"},null,"Ubezpieczenie"]
[null,"Pożyczki",{"v":200,"d":"200 zł"},null,"Pożyczki"]
[null,"Wydatki osobiste",{"v":140,"d":"140 zł"},null,"Wydatki osobiste"]
[null,"Zwierzęta domowe",{"v":100,"d":"100 zł"},null,"Zwierzęta domowe"]
[null,"Oszczędności lub inwestycje",{"v":200,"d":"200 zł"},null,"Oszczędności lub inwestycje"]
[null,"Podatki",{"v":300,"d":"300 zł"},null,"Podatki"]
[null,"Transport",{"v":1375,"d":"1,375 zł"},null,"Transport"]
[null,"Suma końcowa",{"v":7860,"d":"7,860 zł"}]